bitfinex-derivatives/quotes_SOLF0:USTF0_20241216
["timestamp","ask_amount","ask_price","bid_price","bid_amount"]
[1734365053809,2.58,217.34,217.29,2.3011]
[1734365055515,2.58,217.34,217.22,5.43611056]
[1734365055813,17.92467877,217.37,217.22,5.43611056]
[1734365056204,2.3006,217.35,217.27,2.3013]
[1734365057009,17.92467877,217.37,217.22,5.43611056]
[1734365057411,3.1363,217.36,217.22,5.43611056]
[1734365058009,3.1363,217.36,217.24,11.18890945]
[1734365058206,2.3009,217.32,217.25,2.3015]
[1734365059113,2.3009,217.32,217.24,11.18890945]
[1734365059314,2.3009,217.32,217.26,2.3015]
[1734365059710,2.3007,217.34,217.24,11.18890945]
[1734365059918,3.1363,217.36,217.28,2.3013]
[1734365060622,2.3007,217.33,217.27,2.3014]
[1734365060915,3.1363,217.36,217.27,2.3014]
[1734365061319,11.18890945,217.33,217.22,5.43611056]
[1734365061615,3.1363,217.36,217.18,4.6372]
[1734365061616,11.18890945,217.3,217.18,4.6372]
[1734365061810,11.18890945,217.3,217.18,3.1279]
[1734365061811,2.56,217.29,217.18,3.1279]
[1734365062117,2.3016,217.26,217.2,2.3021]
[1734365062719,2.3017,217.25,217.18,3.8916]
[1734365063024,2.56,217.24,217.14,11.18890945]
[1734365063519,2.302,217.22,217.16,2.3024]
[1734365064016,2.302,217.22,217.14,11.18890945]
[1734365064212,2.56,217.24,217.16,5.52706483]
[1734365064814,2.3014,217.27,217.17,11.18890945]
[1734365065013,2.56,217.28,217.17,11.18890945]
[1734365065210,2.3016,217.25,217.2,2.302]
[1734365065815,2.56,217.28,217.17,11.18890945]
[1734365066017,11.18890945,217.27,217.16,5.52706483]
[1734365066523,2.3018,217.24,217.16,5.52706483]
[1734365066722,2.56,217.28,217.16,5.52706483]
[1734365066723,2.56,217.28,217.17,11.18890945]
[1734365067818,2.3016,217.25,217.19,2.3022]
[1734365068018,2.3016,217.25,217.17,11.18890945]
[1734365068019,2.56,217.28,217.17,11.18890945]
[1734365068923,11.18890945,217.27,217.14,13.74890945]
[1734365069125,14.38990945,217.27,217.14,13.74890945]
[1734365069316,2.3021,217.2,217.15,2.3026]
[1734365069720,2.56,217.22,217.15,5.49661041]
[1734365069924,4.862,217.22,217.16,2.3024]
[1734365070225,4.862,217.22,217.15,5.49661041]
[1734365070620,2.56,217.22,217.15,5.49661041]
[1734365070921,2.302,217.21,217.15,5.49661041]
[1734365071324,2.302,217.21,217.16,2.3025]
[1734365072125,4.8619,217.22,217.16,2.3025]
[1734365072724,4.8619,217.22,217.17,2.3024]
[1734365073025,2.3019,217.22,217.17,2.3024]
[1734365074428,2.56,217.23,217.15,5.49661041]
[1734365074628,2.56,217.26,217.17,11.18890945]
[1734365074830,5.761,217.27,217.17,11.18890945]
[1734365075228,2.3016,217.26,217.2,2.3021]
[1734365076127,2.301,217.31,217.2,11.18890945]
[1734365076329,2.56,217.33,217.23,11.18890945]
[1734365078828,2.3006,217.34,217.29,2.3011]
[1734365079635,5.4352,217.35,217.3,2.301]
[1734365081733,2.56,217.37,217.26,11.18890945]
[1734365081934,11.18890945,217.42,217.29,11.18890945]
[1734365082132,2.56,217.41,217.29,11.18890945]
[1734365082333,2.56,217.41,217.36,2.3004]
[1734365082736,11.18890945,217.42,217.36,2.3004]
[1734365082929,11.18890945,217.42,217.3,2.56]
[1734365083130,2.3,217.4,217.34,2.3006]
[1734365083326,2.3,217.4,217.3,2.56]
[1734365083536,2.2999,217.41,217.3,2.56]
[1734365084631,11.18890945,217.42,217.31,11.18890945]
[1734365084835,11.18890945,217.42,217.3,2.56]
[1734365085334,2.2999,217.41,217.35,2.3004]
[1734365085826,2.2999,217.41,217.36,2.3004]
[1734365086636,2.56,217.43,217.31,11.18890945]
[1734365086827,2.56,217.43,217.32,1.5876]
[1734365087031,4.8597,217.43,217.36,2.3003]
[1734365087433,2.56,217.43,217.36,2.3003]
[1734365088437,2.2999,217.41,217.36,2.3003]
[1734365088836,2.56,217.43,217.36,2.3003]
[1734365089235,2.2998,217.42,217.36,2.3003]
[1734365090737,2.2998,217.42,217.37,2.3003]
[1734365091833,2.2997,217.43,217.37,2.3003]
[1734365093039,2.2998,217.42,217.37,2.3003]
[1734365093756,11.18890945,217.41,217.27,5.4731749]
[1734365093976,11.18890945,217.38,217.27,8.0331749]
[1734365094251,2.3007,217.33,217.26,2.3014]
[1734365094465,2.3007,217.33,217.23,4.0322]
[1734365094687,13.74890945,217.35,217.23,4.0322]
[1734365094847,2.56,217.39,217.27,11.18890945]
[1734365095047,13.74890945,217.41,217.27,11.18890945]
[1734365095362,2.3002,217.38,217.32,2.3008]
[1734365096652,13.74890945,217.41,217.28,2.56]
[1734365096860,13.74890945,217.41,217.3,11.18890945]
[1734365097261,13.74890945,217.41,217.34,2.3006]
[1734365098471,2.3001,217.39,217.34,2.3006]
[1734365099173,11.18890945,217.38,217.26,13.74890945]
[1734365099364,11.18890945,217.38,217.26,11.18890945]
[1734365099865,13.74890945,217.41,217.29,11.18890945]
[1734365100071,11.18890945,217.38,217.26,11.18890945]
[1734365101074,11.18890945,217.38,217.25,5.61308138]
[1734365101472,2.3005,217.35,217.3,2.301]
[1734365101865,13.74890945,217.38,217.3,2.301]
[1734365102383,2.3004,217.36,217.3,2.301]
[1734365102582,2.56,217.4,217.28,2.56]
[1734365102774,2.3001,217.39,217.28,2.56]
[1734365102966,2.3001,217.39,217.33,2.3006]
[1734365103169,2.3001,217.39,217.28,2.56]
[1734365103370,3.8875,217.45,217.35,11.18890945]
[1734365103670,1.5881,217.45,217.35,11.18890945]
[1734365104156,1.5881,217.45,217.4,2.3]
[1734365104555,1.5881,217.45,217.35,11.18890945]
[1734365105062,1.5881,217.45,217.4,2.2999]
[1734365105368,1.5881,217.45,217.38,2.3002]
[1734365105568,1.5881,217.45,217.35,12.65560945]
[1734365105770,2.2998,217.43,217.35,12.65560945]
[1734365106164,2.2998,217.43,217.37,2.3003]
[1734365107350,1.5881,217.45,217.35,12.65560945]
[1734365107549,2.2996,217.44,217.35,12.65560945]
[1734365108154,2.2996,217.44,217.39,2.3001]
[1734365108456,2.2995,217.45,217.35,12.65560945]
[1734365109144,83.1019,217.46,217.35,12.65560945]
[1734365110148,83.1019,217.46,217.42,2.2997]
[1734365110654,85.4013,217.46,217.41,2.2998]
[1734365111154,83.1019,217.46,217.42,2.2997]
[1734365111653,83.1019,217.46,217.35,12.65560945]
[1734365111847,83.1019,217.46,217.41,11.18890945]
[1734365112243,83.1019,217.46,217.45,2.2994]
[1734365112747,78.2189,217.46,217.45,4.8594]
[1734365112951,1.5641,217.56,217.52,2.2986]
[1734365113349,1.5641,217.56,217.48,11.18890945]
[1734365113950,2.2984,217.55,217.51,2.2987]
[1734365114151,1.5641,217.56,217.48,11.18890945]
[1734365114752,1.4971,217.59,217.48,11.18890945]
[1734365115056,1.4971,217.59,217.45,2.56]
[1734365115057,1.4971,217.59,217.58,2.2981]
[1734365115269,1.4971,217.59,217.51,13.74890945]
[1734365115757,2.56,217.61,217.51,13.74890945]
[1734365116256,2.56,217.61,217.58,2.298]
[1734365116853,2.56,217.61,217.51,11.18890945]
[1734365117054,2.56,217.61,217.47,11.18890945]
[1734365117254,11.18890945,217.59,217.47,11.18890945]
[1734365117456,2.2981,217.58,217.47,11.18890945]
[1734365117755,2.56,217.61,217.47,11.18890945]
[1734365118259,2.2981,217.59,217.54,2.2984]
[1734365118458,2.56,217.61,217.54,2.2984]
[1734365119052,2.56,217.61,217.51,7.99126523]
[1734365119656,4.8578,217.61,217.56,2.2982]
[1734365119852,2.56,217.61,217.51,7.99126523]
[1734365120455,2.56,217.61,217.56,2.2982]
[1734365120955,2.298,217.59,217.54,2.2985]
[1734365121156,13.74890945,217.61,217.47,11.18890945]
[1734365121550,11.18890945,217.58,217.45,2.56]
[1734365121752,11.18890945,217.58,217.47,5.38422666]
[1734365122149,11.18890945,217.58,217.49,2.2989]
[1734365122150,2.2984,217.55,217.49,2.2989]
[1734365122352,11.18890945,217.58,217.47,5.38422666]
[1734365123057,2.2983,217.56,217.5,2.2988]
[1734365123260,2.56,217.56,217.5,2.2988]
[1734365123457,2.56,217.56,217.47,5.38422666]
[1734365123655,2.56,217.63,217.53,11.18890945]
[1734365124062,2.2977,217.63,217.57,2.2981]
[1734365124263,9.56376697,217.64,217.53,11.18890945]
[1734365124561,3.9216,217.64,217.58,2.298]
[1734365124760,1.6242,217.64,217.56,11.18890945]
[1734365125158,1.5287,217.65,217.63,2.2976]
[1734365125361,1.5241,217.71,217.59,11.18890945]
[1734365125562,11.02955183,217.71,217.59,11.18890945]
[1734365126265,2.2971,217.7,217.64,2.2975]
[1734365126664,11.02955183,217.71,217.57,20.40423993]
[1734365126964,13.32645183,217.71,217.65,2.2975]
[1734365127459,10.76645183,217.71,217.65,2.2975]
[1734365127665,13.32645183,217.71,217.65,2.2975]
[1734365127866,11.02955183,217.71,217.66,2.2974]
[1734365128067,5.6037,217.71,217.57,20.40423993]
[1734365128257,5.6037,217.71,217.66,2.2974]
[1734365128459,5.6037,217.71,217.57,20.40423993]
[1734365129064,5.6037,217.71,217.66,2.2974]
[1734365129263,5.6037,217.71,217.57,20.40423993]
[1734365129462,5.39976757,217.83,217.78,2.2961]
[1734365129667,3.1082,217.83,217.74,2.56]
[1734365129969,2.2956,217.82,217.73,2.2965]
[1734365130162,3.1082,217.83,217.74,2.56]
[1734365130565,3.1082,217.83,217.7,17.84423993]
[1734365130872,3.1082,217.83,217.74,2.56]
[1734365131258,3.1082,217.83,217.76,2.2962]
[1734365131463,3.1082,217.83,217.74,2.56]
[1734365133067,3.1082,217.83,217.74,20.40423993]
[1734365133664,5.4037,217.83,217.76,2.2961]
[1734365133865,3.1082,217.83,217.7,17.84423993]
[1734365134069,3.1082,217.83,217.71,2.56]
[1734365134370,5.4038,217.83,217.71,2.56]
[1734365134664,3.1082,217.83,217.7,17.84423993]
[1734365134862,3.1082,217.83,217.66,17.84423993]
[1734365135061,3.1082,217.83,217.69,5.63338511]
[1734365135062,2.56,217.82,217.69,5.63338511]
[1734365135263,2.296,217.79,217.7,2.2969]
[1734365135470,2.56,217.82,217.7,2.2969]
[1734365135865,2.2961,217.78,217.7,2.2969]
[1734365136268,2.56,217.82,217.7,2.2969]
[1734365136467,2.2962,217.76,217.7,2.2969]
[1734365136667,2.56,217.82,217.7,2.2969]
[1734365136969,2.56,217.82,217.67,2.56]
[1734365137364,2.56,217.82,217.7,2.2968]
[1734365137566,2.296,217.78,217.67,2.56]
[1734365137870,2.56,217.82,217.73,2.2965]
[1734365138068,4.8557,217.82,217.68,5.42341099]
[1734365138267,2.56,217.82,217.68,5.42341099]
[1734365138867,2.2958,217.8,217.72,2.2965]
[1734365139376,2.56,217.82,217.72,2.2965]
[1734365139568,2.2959,217.79,217.72,2.2965]
[1734365139971,2.2959,217.79,217.73,2.2965]
[1734365140875,2.2959,217.8,217.73,2.2965]
[1734365141773,2.2959,217.8,217.74,2.2964]
[1734365141973,4.8557,217.81,217.68,7.98341099]
[1734365142172,2.56,217.81,217.69,17.84423993]
[1734365142669,2.56,217.81,217.69,20.40423993]
[1734365142967,3.1082,217.83,217.69,20.40423993]
[1734365143272,2.56,217.82,217.69,20.40423993]
[1734365143864,3.1082,217.83,217.69,20.40423993]
[1734365144172,2.2957,217.81,217.75,2.2963]
[1734365144766,2.2957,217.81,217.69,20.40423993]
[1734365144767,5.6682,217.83,217.73,17.84423993]
[1734365145365,3.1082,217.83,217.74,2.54]
[1734365145968,3.1082,217.83,217.79,2.2959]
[1734365148773,3.1082,217.83,217.74,2.54]
[1734365149073,3.1082,217.83,217.68,5.42341099]
[1734365149074,5.6482,217.83,217.71,2.54]
[1734365149273,2.296,217.78,217.73,2.2965]
[1734365150172,2.2961,217.77,217.72,2.2966]
[1734365150379,2.54,217.78,217.65,11.14382642]
[1734365150771,2.54,217.78,217.68,2.297]
[1734365151274,2.2965,217.74,217.68,2.297]
[1734365151478,2.54,217.78,217.69,2.2969]
[1734365151669,2.54,217.78,217.66,5.54665259]
[1734365152074,2.54,217.78,217.67,11.14382642]
[1734365152277,2.54,217.78,217.66,5.54665259]
[1734365152578,2.54,217.78,217.71,2.2967]
[1734365152881,2.54,217.79,217.71,2.2967]
[1734365153076,2.54,217.79,217.72,2.2966]
[1734365153277,3.1082,217.83,217.69,20.37208605]
[1734365153471,2.2959,217.79,217.69,20.37208605]
[1734365153678,2.2959,217.79,217.74,2.2964]
[1734365154276,2.2958,217.8,217.75,2.2963]
[1734365154476,2.54,217.82,217.69,20.37208605]
[1734365154976,2.2957,217.81,217.69,20.37208605]
[1734365155371,2.2957,217.81,217.76,2.2961]
[1734365156581,2.54,217.82,217.69,17.83208605]
[1734365156778,2.54,217.82,217.66,5.54665259]
[1734365157081,2.2966,217.73,217.68,2.297]
[1734365158083,2.54,217.75,217.65,5.61365134]
[1734365158575,2.2965,217.74,217.68,2.297]
[1734365158976,2.54,217.75,217.68,2.297]
[1734365159176,2.2966,217.73,217.67,2.2971]
[1734365159373,3.099,217.74,217.63,2.54]
[1734365159575,4.6005,217.74,217.63,2.54]
[1734365159775,2.2968,217.71,217.58,17.83208605]
[1734365159998,4.6005,217.74,217.59,8.03560856]
[1734365160502,2.2971,217.69,217.63,2.2976]
[1734365160716,4.6005,217.74,217.63,2.2976]
[1734365160904,2.54,217.7,217.63,2.2976]
[1734365161097,2.54,217.7,217.59,8.03560856]
[1734365161711,4.837,217.7,217.59,8.03560856]
[1734365162314,2.54,217.7,217.59,8.03560856]
[1734365162617,2.2966,217.72,217.59,8.03560856]
[1734365162908,2.2966,217.72,217.66,2.2972]
[1734365163409,7.1405,217.74,217.65,2.2974]
[1734365164093,2.2969,217.7,217.65,2.2974]
[1734365164300,7.1405,217.74,217.63,2.2975]
[1734365165497,2.2971,217.68,217.63,2.2975]
[1734365166993,7.1405,217.74,217.61,2.2978]
[1734365167182,2.54,217.73,217.59,5.49560856]
[1734365167382,10.49386603,217.73,217.59,5.49560856]
[1734365167680,7.95386603,217.72,217.59,5.49560856]
[1734365167899,2.2969,217.69,217.64,2.2975]
[1734365168086,7.95386603,217.72,217.59,5.49560856]
[1734365168285,2.54,217.73,217.59,5.49560856]
[1734365168489,2.54,217.73,217.62,17.83208605]
[1734365168680,4.6005,217.74,217.63,2.54]
[1734365169081,4.6005,217.74,217.62,17.83208605]
[1734365169391,4.6005,217.74,217.62,2.54]
[1734365169882,2.2967,217.71,217.62,2.54]
[1734365170575,2.2967,217.71,217.65,2.2973]
[1734365170975,2.2967,217.71,217.61,2.54]
[1734365171481,2.2967,217.71,217.59,5.49560856]
[1734365171682,2.2967,217.71,217.6,2.54]
[1734365171879,4.6005,217.74,217.59,5.49560856]
[1734365172080,17.83208605,217.71,217.54,17.83208605]
[1734365172380,11.15702179,217.68,217.58,2.298]
[1734365172579,7.97990805,217.67,217.58,2.298]
[1734365172885,7.97990805,217.67,217.55,11.15702179]
[1734365173086,2.2975,217.64,217.56,2.2982]
[1734365173287,2.54,217.65,217.55,5.64476778]
[1734365173486,13.69702179,217.65,217.55,5.64476778]
[1734365173681,2.2979,217.6,217.56,2.2983]
[1734365173986,2.2979,217.6,217.52,11.15702179]
[1734365174384,2.2979,217.6,217.5,2.54]
[1734365174685,3.2081,217.64,217.53,23.40428941]
[1734365175587,2.54,217.69,217.57,17.85699697]
[1734365175885,2.54,217.69,217.57,20.39699697]
[1734365176088,2.2971,217.68,217.64,2.2974]
[1734365176284,2.54,217.69,217.57,20.39699697]
[1734365176285,1.5237,217.73,217.61,17.85699697]
[1734365176684,1.5237,217.73,217.69,2.2969]
[1734365177282,1.5547,217.75,217.62,2.54]
[1734365177787,1.5237,217.78,217.65,17.85699697]
[1734365177988,2.54,217.77,217.65,17.85699697]
[1734365178487,2.54,217.77,217.74,2.2964]
[1734365178681,1.5237,217.78,217.68,2.54]
[1734365178879,1.5237,217.78,217.71,2.2967]
[1734365179085,1.5237,217.78,217.68,2.54]
[1734365179582,1.5237,217.78,217.73,2.2964]
[1734365179786,1.5237,217.78,217.68,2.54]
[1734365180091,2.2962,217.77,217.68,2.54]
[1734365180382,1.5237,217.78,217.68,2.54]
[1734365180786,4.8359,217.8,217.68,2.54]
[1734365181177,4.8359,217.8,217.71,2.2967]
[1734365181383,2.54,217.8,217.69,17.85699697]
[1734365181783,2.54,217.8,217.78,2.296]
[1734365182581,13.26683518,217.88,217.83,2.2955]
[1734365182779,7.98236447,217.87,217.83,2.2955]
[1734365182983,7.98236447,217.87,217.76,2.54]
[1734365183387,2.2951,217.87,217.76,2.54]
[1734365183782,7.98236447,217.89,217.8,2.2957]
[1734365183989,2.295,217.87,217.8,2.2957]
[1734365184190,2.295,217.87,217.76,2.54]
[1734365184490,2.295,217.87,217.81,2.2956]
[1734365184683,2.2949,217.89,217.76,2.54]
[1734365185198,2.54,217.88,217.76,2.54]
[1734365185889,10.2754796,217.89,217.76,2.54]
[1734365185890,12.8154796,217.89,217.76,2.54]
[1734365186189,10.5205796,217.89,217.76,2.54]
[1734365186386,7.9805796,217.88,217.8,2.2957]
[1734365186587,7.9805796,217.88,217.76,2.54]
[1734365186889,2.54,217.89,217.83,2.2954]
[1734365187386,4.8349,217.89,217.83,2.2954]
[1734365187582,2.54,217.89,217.83,2.2954]
[1734365187786,10.51763927,217.89,217.76,2.54]
[1734365187984,7.97763927,217.88,217.76,2.54]
[1734365188387,2.54,217.89,217.77,17.85699697]
[1734365188690,4.8349,217.89,217.77,17.85699697]
[1734365188992,2.54,217.89,217.77,17.85699697]
[1734365189190,10.51245878,217.89,217.77,17.85699697]
[1734365189387,2.2951,217.87,217.81,2.2956]
[1734365189591,2.54,217.89,217.77,17.85699697]
[1734365190205,10.95618771,217.9,217.77,17.85699697]
[1734365190489,2.2948,217.9,217.83,2.2954]
[1734365190692,2.2948,217.9,217.77,17.85699697]
[1734365190991,2.2949,217.88,217.8,2.2957]
[1734365191189,2.2949,217.88,217.77,17.85699697]
[1734365191985,7.96947418,217.9,217.75,5.50245674]
[1734365192189,18.92377469,217.9,217.78,2.2959]
[1734365192390,7.96947418,217.89,217.75,5.50245674]
[1734365192988,2.54,217.88,217.75,5.50245674]
[1734365193189,2.54,217.88,217.77,17.85699697]
[1734365193390,2.54,217.88,217.8,2.2957]
[1734365193686,2.54,217.88,217.78,2.54]
[1734365193991,2.54,217.88,217.81,2.2957]
[1734365194298,2.54,217.88,217.78,2.54]
[1734365194594,2.54,217.95,217.85,17.85699697]
[1734365194786,2.294,217.97,217.85,17.85699697]
[1734365194988,18.93791076,218.0,217.89,17.85699697]
[1734365195297,5.3666,218.01,217.94,2.2942]
[1734365195489,5.3666,218.01,217.89,20.39699697]
[1734365195490,3.0729,218.01,217.89,20.39699697]
[1734365195893,2.54,218.05,217.89,20.39699697]
[1734365196324,10.51072729,218.05,217.89,20.39699697]
[1734365196519,2.54,218.05,217.89,20.39699697]
[1734365196718,2.2934,218.03,217.97,2.2939]
[1734365197120,7.14664664,218.06,217.89,20.39699697]
[1734365197424,2.54,218.05,217.92,5.39809925]
[1734365197717,1.5122,218.12,217.93,17.85699697]
[1734365197912,2.54,218.11,217.92,5.39809925]
[1734365198119,5.39809925,218.08,217.92,5.39809925]
[1734365198323,5.39809925,218.08,217.96,17.85699697]
[1734365199796,2.293,218.06,217.93,2.54]
[1734365200097,2.54,218.05,217.93,2.54]
[1734365200700,4.8332,218.05,217.99,2.2938]
[1734365201197,4.8332,218.05,217.93,2.54]
[1734365201198,2.54,218.05,217.93,2.54]
[1734365201398,2.54,218.05,217.92,5.39809925]
[1734365201700,1.5515,218.04,217.92,5.39809925]
[1734365202090,2.2937,218.0,217.93,2.2943]
[1734365202292,2.54,217.99,217.93,2.2943]
[1734365203198,2.54,217.99,217.94,2.2943]
[1734365203393,2.54,217.99,217.87,17.85699697]
[1734365203693,2.54,217.99,217.86,2.54]
[1734365203694,4.1392,217.99,217.86,2.54]
[1734365204197,4.1392,217.99,217.85,0.22034]
[1734365204198,17.85699697,217.98,217.85,0.22034]
[1734365204396,17.85699697,217.94,217.85,0.22034]
[1734365204599,17.85699697,217.94,217.61,187.0]
[1734365204600,2.2952,217.86,217.73,17.85699697]
[1734365204801,2.54,217.85,217.76,2.2962]
[1734365205100,2.2957,217.81,217.73,23.32701411]
[1734365205295,2.54,217.8,217.73,5.47001714]
[1734365206204,23.43987381,217.9,217.73,5.47001714]
[1734365206398,2.54,217.89,217.73,23.32701411]
[1734365207502,2.54,217.88,217.73,23.32701411]
[1734365207698,2.54,217.88,217.77,17.85699697]
[1734365208591,13.82,218.12,217.81,17.85699697]
[1734365208796,13.82,218.12,217.73,5.68041714]
[1734365208797,17.85699697,218.03,217.85,17.85699697]
[1734365209000,13.50732812,218.02,217.85,17.85699697]
[1734365209203,5.50760006,217.98,217.85,17.85699697]
[1734365209404,2.54,217.97,217.85,17.85699697]
[1734365209796,4.1195,217.97,217.85,17.85699697]
[1734365213709,4.1195,217.97,217.84,2.54]
[1734365213902,4.1195,217.97,217.82,2.54]
[1734365215009,23.29330883,217.99,217.82,2.54]
[1734365215213,2.54,217.98,217.85,17.85699697]
[1734365216717,2.54,217.98,217.85,23.38859341]
[1734365219918,2.54,217.98,217.85,5.53159644]
[1734365220128,2.54,217.98,217.82,2.54]
[1734365220445,17.85699697,217.95,217.77,17.85699697]
[1734365220648,17.85699697,217.91,217.73,20.60739697]
[1734365220848,7.0867,217.9,217.73,20.60739697]
[1734365221150,7.0867,217.9,217.77,5.63245149]
[1734365222345,15.04923624,217.9,217.73,20.60739697]
[1734365222546,17.85699697,217.87,217.73,0.2104]
[1734365222852,15.04923624,217.9,217.72,2.54]
[1734365222853,4.5467,217.9,217.72,2.54]
[1734365223037,4.5467,217.9,217.74,17.85699697]
[1734365223038,2.54,217.89,217.74,17.85699697]
[1734365223852,2.54,217.89,217.7,0.2083]
[1734365223853,17.85699697,217.87,217.7,17.85699697]
[1734365224049,17.85699697,217.83,217.68,5.50470852]
[1734365224243,4.5467,217.9,217.7,17.85699697]
[1734365224244,2.54,217.82,217.7,17.85699697]
[1734365224449,2.54,217.81,217.7,17.85699697]
[1734365224641,7.96378988,217.86,217.7,17.85699697]
[1734365224642,2.54,217.83,217.7,17.85699697]
[1734365225756,2.54,217.86,217.74,17.85699697]
[1734365225952,2.54,217.86,217.74,20.39699697]
[1734365227555,7.0867,217.9,217.78,17.85699697]
[1734365227760,7.0867,217.9,217.79,2.54]
[1734365229755,253.94294628,218.11,217.82,17.85699697]
[1734365229756,7.97398593,217.94,217.82,17.85699697]
[1734365229953,2.54,217.95,217.82,17.85699697]
[1734365230161,5.44436615,217.95,217.82,17.85699697]
[1734365230857,2.54,217.96,217.82,17.85699697]
[1734365233561,2.2944,217.94,217.82,17.85699697]
[1734365233966,2.2941,217.97,217.86,17.85699697]
[1734365234296,2.2941,217.97,217.87,2.54]
[1734365234966,2.54,217.98,217.87,2.54]
[1734365235155,2.54,217.98,217.89,2.2948]
[1734365235356,2.54,217.98,217.87,2.54]
[1734365235657,2.54,217.98,217.91,2.2946]
[1734365235857,7.97850246,217.99,217.87,2.54]
[1734365236064,2.2939,217.99,217.87,2.54]
[1734365236258,9.50760246,218.01,217.88,17.85699697]
[1734365236457,7.97850246,218.0,217.88,17.85699697]
[1734365236658,1.5291,218.01,217.88,17.85699697]
[1734365236659,9.50760246,218.01,217.88,17.85699697]
[1734365236860,1.5291,218.01,217.95,2.2942]
[1734365237859,1.5291,218.01,217.96,2.2941]
[1734365238055,312.02564373,218.17,217.97,20.39699697]
[1734365238056,253.94294628,218.17,217.97,20.39699697]
[1734365238268,18.97134574,218.16,218.01,17.85699697]
[1734365238565,13.51227598,218.15,218.02,2.54]
[1734365238853,2.2919,218.17,218.02,2.54]
[1734365239055,5.49230804,218.16,218.11,2.2925]
[1734365239244,17.85699697,218.22,218.07,2.54]
[1734365239245,2.2917,218.19,218.07,2.54]
[1734365239458,2.2917,218.19,218.08,2.54]
[1734365239676,5.58156906,218.19,218.06,17.85699697]
[1734365239854,5.58156906,218.19,218.07,2.54]
[1734365239855,2.2921,218.16,218.07,2.54]
[1734365240154,2.2921,218.16,218.08,2.2927]
[1734365240345,2.2921,218.16,218.05,2.54]
[1734365240842,4.8319,218.17,218.1,2.2926]
[1734365241041,6.3556,218.17,218.1,2.2926]
[1734365241438,6.3556,218.17,218.08,2.2928]
[1734365241439,2.2921,218.15,218.08,2.2928]
[1734365241636,1.4664,218.16,218.04,2.54]
[1734365242536,1.4664,218.16,218.1,2.2926]
[1734365244239,1.4664,218.16,218.11,2.2925]
[1734365245432,1.4664,218.16,218.06,17.85699697]
[1734365245636,1.5237,218.17,218.06,17.85699697]
[1734365245833,2.54,218.19,218.14,2.2922]
[1734365246433,2.54,218.19,218.13,2.2923]
[1734365246640,2.54,218.19,218.09,2.54]
[1734365247236,3.8419,218.21,218.1,17.85699697]
[1734365247935,3.8419,218.21,218.14,2.2922]
[1734365249143,3.8419,218.21,218.15,2.2921]
[1734365249836,1.5504,218.21,217.97,5.63777045]
[1734365250039,1.5504,218.21,218.07,17.85699697]
[1734365250337,3.842,218.21,218.14,2.2921]
[1734365250542,3.842,218.21,218.11,11.10319875]
[1734365250739,1.5504,218.21,218.11,11.10319875]
[1734365251043,1.5504,218.21,218.11,13.64319875]
[1734365251344,1.5504,218.21,218.14,11.10319875]
[1734365253148,1.5504,218.21,218.11,19.20918806]
[1734365255546,1.5504,218.21,218.11,16.66918806]
[1734365259752,1.5504,218.21,217.9,239.5]
[1734365259753,11.10319875,218.19,218.07,2.54]
[1734365259963,2.54,218.18,218.06,13.64319875]
[1734365260250,2.54,218.18,218.06,11.10319875]
[1734365260452,1.5331,218.17,218.06,11.10319875]
[1734365260845,1.5331,218.17,218.07,5.52647516]
[1734365262345,11.10319875,218.16,218.07,5.52647516]
[1734365263355,11.10319875,218.16,218.03,11.10319875]
[1734365263948,11.10319875,218.16,218.05,5.60546964]
[1734365265759,1.5331,218.17,218.06,11.10319875]
[1734365266056,1.5331,218.17,218.06,13.64319875]